[Event "*** SCC Grand Prix: Titled Tuesday Blitz"]
[Site "Chess.com"]
[Date "2020.08.25"]
[Round "1"]
[White "Gennady_Kozlov"]
[Black "Falia-p"]
[Result "0-1"]
[WhiteElo "2574"]
[BlackElo "2280"]
[TimeControl "180+1"]
[EndTime "10:05:46 PDT"]
[Termination "Falia-p won by resignation"]

1. b3 {[%clk 0:02:59.2]} 1... Nf6 {[%clk 0:02:59.1]} 2. Bb2 {[%clk 0:03:00.1]}
2... g6 {[%clk 0:02:59.4]} 3. e3 {[%clk 0:02:54.8]} 3... Bg7 {[%clk 0:02:58.9]}
4. f4 {[%clk 0:02:55.7]} 4... d5 {[%clk 0:02:55]} 5. Nf3 {[%clk 0:02:55.7]} 5...
c6 {[%clk 0:02:53.3]} 6. Be2 {[%clk 0:02:56.3]} 6... O-O {[%clk 0:02:52.7]} 7.
O-O {[%clk 0:02:35.6]} 7... Bf5 {[%clk 0:02:48.1]} 8. a4 {[%clk 0:01:56.4]} 8...
Re8 {[%clk 0:02:43.8]} 9. Na3 {[%clk 0:01:10.8]} 9... Na6 {[%clk 0:02:34.8]} 10.
Bxa6 {[%clk 0:01:05.3]} 10... bxa6 {[%clk 0:02:34.1]} 11. Ne5 {[%clk 0:01:06.2]}
11... Qc7 {[%clk 0:02:30.8]} 12. Qe2 {[%clk 0:01:05.6]} 12... Nd7 {[%clk
0:02:24.3]} 13. Qxa6 {[%clk 0:01:03.4]} 13... Nxe5 {[%clk 0:02:14.3]} 14. fxe5
{[%clk 0:01:04.3]} 14... Bxe5 {[%clk 0:02:13.7]} 15. Bxe5 {[%clk 0:01:04.6]}
15... Qxe5 {[%clk 0:02:13.9]} 16. Qxc6 {[%clk 0:01:04.9]} 16... Rec8 {[%clk
0:02:07.2]} 17. Qa6 {[%clk 0:01:03.9]} 17... Bxc2 {[%clk 0:01:55]} 18. Rac1
{[%clk 0:01:00.6]} 18... Bf5 {[%clk 0:01:53.3]} 19. Rxc8+ {[%clk 0:00:51.4]}
19... Rxc8 {[%clk 0:01:46.5]} 20. Qxa7 {[%clk 0:00:44.2]} 20... Bd3 {[%clk
0:01:40.8]} 21. Qd7 {[%clk 0:00:38.7]} 21... Bf5 {[%clk 0:01:25.8]} 22. Qb5
{[%clk 0:00:37.3]} 22... e6 {[%clk 0:01:18.5]} 23. Qd7 {[%clk 0:00:30.7]} 23...
Rf8 {[%clk 0:01:17.5]} 24. Nb5 {[%clk 0:00:29.8]} 24... Bd3 {[%clk 0:01:15.7]}
25. Rc1 {[%clk 0:00:28.3]} 25... Qb2 {[%clk 0:01:14.8]} 26. Qc6 {[%clk
0:00:23.2]} 26... Qxd2 {[%clk 0:01:14]} 27. Qc5 {[%clk 0:00:23]} 27... Be4
{[%clk 0:01:11.2]} 0-1

[Event "*** SCC Grand Prix: Titled Tuesday Blitz"]
[Site "Chess.com"]
[Date "2020.08.25"]
[Round "1"]
[White "ChristopherYoo"]
[Black "Makswolf200817"]
[Result "1-0"]
[WhiteElo "2846"]
[BlackElo "2418"]
[TimeControl "180+1"]
[EndTime "10:05:47 PDT"]
[Termination "ChristopherYoo won by resignation"]

1. e4 {[%clk 0:03:00.9]} 1... e6 {[%clk 0:02:59]} 2. d4 {[%clk 0:03:00.6]} 2...
d5 {[%clk 0:02:58.9]} 3. Nc3 {[%clk 0:03:00.7]} 3... Bb4 {[%clk 0:02:59]} 4.
exd5 {[%clk 0:02:56.6]} 4... exd5 {[%clk 0:02:58.7]} 5. Qf3 {[%clk 0:02:56.5]}
5... Ne7 {[%clk 0:02:53.7]} 6. a3 {[%clk 0:02:53.9]} 6... Bd6 {[%clk 0:02:49.1]}
7. Bd3 {[%clk 0:02:45.6]} 7... Nbc6 {[%clk 0:02:46.1]} 8. Nge2 {[%clk
0:02:44.4]} 8... a6 {[%clk 0:02:45.6]} 9. Bg5 {[%clk 0:02:33]} 9... Be6 {[%clk
0:02:38.3]} 10. O-O {[%clk 0:02:21.9]} 10... Qd7 {[%clk 0:02:35.9]} 11. h3
{[%clk 0:02:15.7]} 11... h6 {[%clk 0:02:24.2]} 12. Bf4 {[%clk 0:02:15.1]} 12...
Bxf4 {[%clk 0:02:06.3]} 13. Qxf4 {[%clk 0:02:14.8]} 13... O-O-O {[%clk
0:01:56.6]} 14. b4 {[%clk 0:02:12.5]} 14... g5 {[%clk 0:01:47.3]} 15. Qf6 {[%clk
0:01:42.9]} 15... Rdg8 {[%clk 0:01:33.7]} 16. Ng3 {[%clk 0:01:33.7]} 16... h5
{[%clk 0:01:30.2]} 17. Na4 {[%clk 0:01:17.6]} 17... h4 {[%clk 0:01:23.2]} 18.
Nc5 {[%clk 0:01:16.7]} 18... Qd6 {[%clk 0:01:23]} 19. Nf5 {[%clk 0:01:13.1]}
19... Bxf5 {[%clk 0:01:18.6]} 20. Bxf5+ {[%clk 0:01:14]} 20... Nxf5 {[%clk
0:01:06.9]} 21. Qxf5+ {[%clk 0:01:13.6]} 21... Kb8 {[%clk 0:01:07.8]} 22. c3
{[%clk 0:01:13.6]} 22... Ne7 {[%clk 0:00:57.4]} 23. Qd7 {[%clk 0:00:57.1]} 23...
Qf6 {[%clk 0:00:39.7]} 24. Rae1 {[%clk 0:00:45.3]} 24... Re8 {[%clk 0:00:29.1]}
25. Qxe8+ {[%clk 0:00:44.7]} 1-0

[Event "*** SCC Grand Prix: Titled Tuesday Blitz"]
[Site "Chess.com"]
[Date "2020.08.25"]
[Round "1"]
[White "GOGIEFF"]
[Black "chenxiaoyuer"]
[Result "1-0"]
[WhiteElo "2853"]
[BlackElo "2420"]
[TimeControl "180+1"]
[EndTime "10:05:50 PDT"]
[Termination "GOGIEFF won by checkmate"]

1. d4 {[%clk 0:03:00.6]} 1... Nf6 {[%clk 0:02:59.3]} 2. c4 {[%clk 0:03:00.1]}
2... g6 {[%clk 0:02:58.6]} 3. Nc3 {[%clk 0:02:59.9]} 3... Bg7 {[%clk 0:02:58.9]}
4. e4 {[%clk 0:02:58.7]} 4... d6 {[%clk 0:02:58.9]} 5. Be2 {[%clk 0:02:58]} 5...
O-O {[%clk 0:02:56.1]} 6. Bg5 {[%clk 0:02:57.2]} 6... Na6 {[%clk 0:02:55.2]} 7.
Nf3 {[%clk 0:02:46.3]} 7... e5 {[%clk 0:02:34]} 8. d5 {[%clk 0:02:44.8]} 8... h6
{[%clk 0:02:29.1]} 9. Bh4 {[%clk 0:02:42.1]} 9... g5 {[%clk 0:02:25.4]} 10. Bg3
{[%clk 0:02:42.1]} 10... Nxe4 {[%clk 0:02:24.7]} 11. Nxe4 {[%clk 0:02:40.8]}
11... f5 {[%clk 0:02:24.4]} 12. Nfd2 {[%clk 0:02:39.2]} 12... fxe4 {[%clk
0:02:19.8]} 13. Nxe4 {[%clk 0:02:35.3]} 13... Bf5 {[%clk 0:02:04.3]} 14. Bd3
{[%clk 0:02:34.4]} 14... Qd7 {[%clk 0:01:46.9]} 15. O-O {[%clk 0:02:28.2]} 15...
Rf7 {[%clk 0:01:20.1]} 16. a3 {[%clk 0:02:24.1]} 16... Bxe4 {[%clk 0:01:15.1]}
17. Bxe4 {[%clk 0:02:22.9]} 17... Nc5 {[%clk 0:01:14.7]} 18. Bg6 {[%clk
0:02:21]} 18... Rf6 {[%clk 0:01:13.6]} 19. Bc2 {[%clk 0:02:20.7]} 19... a5
{[%clk 0:00:57.4]} 20. b4 {[%clk 0:02:18.1]} 20... axb4 {[%clk 0:00:57.9]} 21.
axb4 {[%clk 0:02:18.7]} 21... Rxa1 {[%clk 0:00:58.4]} 22. Qxa1 {[%clk
0:02:19.2]} 22... Na6 {[%clk 0:00:58.4]} 23. Rb1 {[%clk 0:01:54.9]} 23... h5
{[%clk 0:00:55.5]} 24. h4 {[%clk 0:01:45.4]} 24... gxh4 {[%clk 0:00:50.1]} 25.
Bxh4 {[%clk 0:01:43.9]} 25... Rf4 {[%clk 0:00:49.8]} 26. Bg5 {[%clk 0:01:11.9]}
26... Rxc4 {[%clk 0:00:45.3]} 27. b5 {[%clk 0:01:12.1]} 27... Rxc2 {[%clk
0:00:30.4]} 28. bxa6 {[%clk 0:01:11.2]} 28... bxa6 {[%clk 0:00:31.3]} 29. Rb8+
{[%clk 0:01:10.9]} 29... Kh7 {[%clk 0:00:30.6]} 30. Qd1 {[%clk 0:01:03.5]} 30...
Qf5 {[%clk 0:00:29.1]} 31. Qxh5+ {[%clk 0:01:02]} 31... Bh6 {[%clk 0:00:27.2]}
32. Qxh6# {[%clk 0:01:01.4]} 1-0

[Event "*** SCC Grand Prix: Titled Tuesday Blitz"]
[Site "Chess.com"]
[Date "2020.08.25"]
[Round "1"]
[White "PSvidler"]
[Black "Nafania1"]
[Result "1-0"]
[WhiteElo "2962"]
[BlackElo "2448"]
[TimeControl "180+1"]
[EndTime "10:05:52 PDT"]
[Termination "PSvidler won by resignation"]

1. e4 {[%clk 0:02:55.9]} 1... e6 {[%clk 0:02:59.9]} 2. d4 {[%clk 0:02:55.3]}
2... d5 {[%clk 0:03:00.1]} 3. Nd2 {[%clk 0:02:55.8]} 3... Be7 {[%clk 0:02:59.8]}
4. Bd3 {[%clk 0:02:48.3]} 4... c5 {[%clk 0:02:58.7]} 5. dxc5 {[%clk 0:02:45]}
5... Nf6 {[%clk 0:02:58.4]} 6. Qe2 {[%clk 0:02:44.8]} 6... O-O {[%clk
0:02:58.3]} 7. Ngf3 {[%clk 0:02:43.9]} 7... a5 {[%clk 0:02:58.7]} 8. a4 {[%clk
0:02:33.5]} 8... Na6 {[%clk 0:02:58.3]} 9. exd5 {[%clk 0:02:25.6]} 9... exd5
{[%clk 0:02:48.2]} 10. O-O {[%clk 0:02:18.5]} 10... Nxc5 {[%clk 0:02:47.3]} 11.
Bb5 {[%clk 0:02:18.3]} 11... Nce4 {[%clk 0:02:38]} 12. Rd1 {[%clk 0:02:13.8]}
12... Qc7 {[%clk 0:02:22.2]} 13. Nf1 {[%clk 0:02:13.2]} 13... Bc5 {[%clk
0:02:09.6]} 14. Be3 {[%clk 0:02:10.6]} 14... b6 {[%clk 0:01:58.5]} 15. h3 {[%clk
0:02:01.6]} 15... h6 {[%clk 0:01:49.7]} 16. Bd4 {[%clk 0:02:00.9]} 16... Bd7
{[%clk 0:01:40.7]} 17. Ne3 {[%clk 0:01:58.2]} 17... Bxb5 {[%clk 0:01:31.8]} 18.
Qxb5 {[%clk 0:01:57.8]} 18... Rad8 {[%clk 0:01:22]} 19. c3 {[%clk 0:01:57.4]}
19... Rfe8 {[%clk 0:01:19.8]} 20. Bxc5 {[%clk 0:01:53.5]} 20... Qxc5 {[%clk
0:01:18.5]} 21. Nd4 {[%clk 0:01:49.1]} 21... Qxb5 {[%clk 0:01:11.6]} 22. axb5
{[%clk 0:01:46.2]} 22... g6 {[%clk 0:01:00.2]} 23. Nc6 {[%clk 0:01:45.7]} 23...
Rd6 {[%clk 0:00:59]} 24. Rd4 {[%clk 0:01:43.4]} 24... Nc5 {[%clk 0:00:43.8]} 25.
Rad1 {[%clk 0:01:42.6]} 25... Nb3 {[%clk 0:00:43.6]} 26. Rf4 {[%clk 0:01:42.5]}
26... Kg7 {[%clk 0:00:37.4]} 27. Nc4 {[%clk 0:01:42]} 27... Rxc6 {[%clk
0:00:35.1]} 28. bxc6 {[%clk 0:01:41.9]} 28... dxc4 {[%clk 0:00:35.5]} 29. Rxc4
{[%clk 0:01:41.8]} 29... b5 {[%clk 0:00:33.6]} 30. c7 {[%clk 0:01:37.6]} 30...
bxc4 {[%clk 0:00:12]} 31. Rd8 {[%clk 0:01:36.8]} 31... Re1+ {[%clk 0:00:10.5]}
32. Kh2 {[%clk 0:01:36.5]} 32... Nd2 {[%clk 0:00:09]} 33. Rxd2 {[%clk
0:01:31.5]} 1-0

[Event "*** SCC Grand Prix: Titled Tuesday Blitz"]
[Site "Chess.com"]
[Date "2020.08.25"]
[Round "1"]
[White "jefferyx"]
[Black "sergivila"]
[Result "1-0"]
[WhiteElo "2908"]
[BlackElo "2438"]
[TimeControl "180+1"]
[EndTime "10:05:55 PDT"]
[Termination "jefferyx won by resignation"]

1. d4 {[%clk 0:03:00.9]} 1... Nf6 {[%clk 0:02:58.5]} 2. Nf3 {[%clk 0:03:01.8]}
2... d5 {[%clk 0:02:58.1]} 3. c4 {[%clk 0:03:01.2]} 3... e6 {[%clk 0:02:57.8]}
4. g3 {[%clk 0:02:59.9]} 4... dxc4 {[%clk 0:02:56.2]} 5. Bg2 {[%clk 0:02:59]}
5... Bd7 {[%clk 0:02:55.7]} 6. Ne5 {[%clk 0:02:57.2]} 6... Bc6 {[%clk
0:02:54.9]} 7. Nxc6 {[%clk 0:02:56.2]} 7... Nxc6 {[%clk 0:02:55.8]} 8. e3 {[%clk
0:02:55.8]} 8... Qd7 {[%clk 0:02:54.3]} 9. Qa4 {[%clk 0:02:53.4]} 9... Nb4
{[%clk 0:02:44.3]} 10. Qxd7+ {[%clk 0:02:46.3]} 10... Kxd7 {[%clk 0:02:37.1]}
11. Na3 {[%clk 0:02:47.2]} 11... Rb8 {[%clk 0:02:32.9]} 12. O-O {[%clk
0:02:40.6]} 12... b5 {[%clk 0:02:31.7]} 13. Rd1 {[%clk 0:02:33.6]} 13... Be7
{[%clk 0:02:26.4]} 14. Bd2 {[%clk 0:02:20.1]} 14... Nd3 {[%clk 0:02:21.9]} 15.
Bc3 {[%clk 0:02:19.8]} 15... Nd5 {[%clk 0:01:55.2]} 16. Ba5 {[%clk 0:02:12.1]}
16... Nxb2 {[%clk 0:01:49.9]} 17. Nc2 {[%clk 0:02:06.9]} 17... Nxd1 {[%clk
0:01:47.7]} 18. Rxd1 {[%clk 0:02:07.8]} 18... Rhc8 {[%clk 0:01:44.2]} 19. e4
{[%clk 0:02:07.6]} 19... Nb6 {[%clk 0:01:40.4]} 20. d5 {[%clk 0:02:08.5]} 20...
exd5 {[%clk 0:01:37.9]} 21. exd5 {[%clk 0:02:09.4]} 21... Ke8 {[%clk 0:01:34.7]}
22. Nd4 {[%clk 0:02:07.7]} 22... Bd6 {[%clk 0:01:09]} 23. Nxb5 {[%clk
0:01:55.6]} 23... a6 {[%clk 0:00:54.5]} 24. Na7 {[%clk 0:01:51.9]} 24... Na4
{[%clk 0:00:44.1]} 25. Nxc8 {[%clk 0:01:40.4]} 25... Rxc8 {[%clk 0:00:45]} 26.
Bf1 {[%clk 0:01:41.1]} 26... c3 {[%clk 0:00:42.4]} 27. Bxa6 {[%clk 0:01:42]}
27... Rb8 {[%clk 0:00:40.7]} 28. Bc4 {[%clk 0:01:42.5]} 28... Rb2 {[%clk
0:00:35.7]} 29. Bb3 {[%clk 0:01:39.1]} 29... Nc5 {[%clk 0:00:31.3]} 30. Re1+
{[%clk 0:01:33.3]} 30... Kd7 {[%clk 0:00:30]} 31. Bxc3 {[%clk 0:01:34.2]} 31...
Rxb3 {[%clk 0:00:16.4]} 32. axb3 {[%clk 0:01:32.4]} 32... Nxb3 {[%clk
0:00:17.3]} 33. Bxg7 {[%clk 0:01:31.7]} 33... Nc5 {[%clk 0:00:15.7]} 34. Re3
{[%clk 0:01:28.2]} 1-0

[Event "*** SCC Grand Prix: Titled Tuesday Blitz"]
[Site "Chess.com"]
[Date "2020.08.25"]
[Round "1"]
[White "Sanyura"]
[Black "AndreyNeves"]
[Result "1-0"]
[WhiteElo "2516"]
[BlackElo "2175"]
[TimeControl "180+1"]
[EndTime "10:05:55 PDT"]
[Termination "Sanyura won on time"]

1. e4 {[%clk 0:02:58.1]} 1... c5 {[%clk 0:02:58.4]} 2. Nf3 {[%clk 0:02:56.6]}
2... Nc6 {[%clk 0:02:56.6]} 3. d4 {[%clk 0:02:57.2]} 3... cxd4 {[%clk
0:02:55.9]} 4. Nxd4 {[%clk 0:02:58.1]} 4... Nf6 {[%clk 0:02:55.6]} 5. Nc3 {[%clk
0:02:55.9]} 5... d6 {[%clk 0:02:55]} 6. Bg5 {[%clk 0:02:53.8]} 6... e6 {[%clk
0:02:46.4]} 7. Qd2 {[%clk 0:02:51.4]} 7... a6 {[%clk 0:02:43.7]} 8. O-O-O {[%clk
0:02:51.1]} 8... Bd7 {[%clk 0:02:43.4]} 9. f3 {[%clk 0:02:51.1]} 9... b5 {[%clk
0:02:34.7]} 10. a3 {[%clk 0:02:43.5]} 10... Qc7 {[%clk 0:02:20.5]} 11. Bxf6
{[%clk 0:02:36.4]} 11... gxf6 {[%clk 0:02:19.6]} 12. Nxc6 {[%clk 0:02:26.2]}
12... Bxc6 {[%clk 0:02:16.8]} 13. Be2 {[%clk 0:02:20.6]} 13... Rb8 {[%clk
0:02:13.9]} 14. Kb1 {[%clk 0:02:19.7]} 14... a5 {[%clk 0:02:12.8]} 15. Na2
{[%clk 0:02:13.7]} 15... d5 {[%clk 0:02:06.4]} 16. exd5 {[%clk 0:02:11.8]} 16...
Bxd5 {[%clk 0:02:05.5]} 17. Nc3 {[%clk 0:02:12.2]} 17... Bc6 {[%clk 0:01:45.4]}
18. Ne4 {[%clk 0:02:04.1]} 18... Bxe4 {[%clk 0:01:28.9]} 19. fxe4 {[%clk
0:02:04.3]} 19... Be7 {[%clk 0:01:22.2]} 20. g4 {[%clk 0:02:02.7]} 20... b4
{[%clk 0:01:03.3]} 21. a4 {[%clk 0:02:02.4]} 21... O-O {[%clk 0:00:48.5]} 22. h4
{[%clk 0:02:02.3]} 22... b3 {[%clk 0:00:44.6]} 23. c3 {[%clk 0:02:01.4]} 23...
Qc6 {[%clk 0:00:37.9]} 24. Bb5 {[%clk 0:01:57.3]} 24... Rxb5 {[%clk 0:00:20.8]}
25. axb5 {[%clk 0:01:58.2]} 25... Qxe4+ {[%clk 0:00:20.9]} 26. Qd3 {[%clk
0:01:58.5]} 26... Qa4 {[%clk 0:00:20.7]} 27. Kc1 {[%clk 0:01:57.3]} 27... Qa1+
{[%clk 0:00:19.5]} 28. Qb1 {[%clk 0:01:57.2]} 28... Qa4 {[%clk 0:00:17.1]} 29.
Rd4 {[%clk 0:01:55.6]} 29... Qxb5 {[%clk 0:00:15.7]} 30. Qd3 {[%clk 0:01:55.6]}
30... Qe5 {[%clk 0:00:08.2]} 31. Rd7 {[%clk 0:01:51.1]} 31... Bc5 {[%clk
0:00:07.2]} 32. Rf1 {[%clk 0:01:49.8]} 32... Be3+ {[%clk 0:00:06.5]} 33. Kb1
{[%clk 0:01:49.3]} 33... Qc5 {[%clk 0:00:03.4]} 34. g5 {[%clk 0:01:47.3]} 34...
Qc6 {[%clk 0:00:02.7]} 35. gxf6 {[%clk 0:01:45.9]} 1-0

[Event "*** SCC Grand Prix: Titled Tuesday Blitz"]
[Site "Chess.com"]
[Date "2020.08.25"]
[Round "1"]
[White "stepanosinovsky"]
[Black "Andreikka"]
[Result "0-1"]
[WhiteElo "2417"]
[BlackElo "2846"]
[TimeControl "180+1"]
[EndTime "10:05:58 PDT"]
[Termination "Andreikka won on time"]

1. e4 {[%clk 0:02:56.5]} 1... d5 {[%clk 0:02:58.5]} 2. exd5 {[%clk 0:02:50.3]}
2... Qxd5 {[%clk 0:02:59.4]} 3. Nc3 {[%clk 0:02:49.5]} 3... Qa5 {[%clk
0:02:59.1]} 4. g3 {[%clk 0:02:46.5]} 4... c6 {[%clk 0:02:58.4]} 5. Bg2 {[%clk
0:02:46.3]} 5... Bf5 {[%clk 0:02:57.8]} 6. Nge2 {[%clk 0:02:45.8]} 6... e6
{[%clk 0:02:57.5]} 7. O-O {[%clk 0:02:45.4]} 7... Nf6 {[%clk 0:02:57.3]} 8. d3
{[%clk 0:02:44.4]} 8... Be7 {[%clk 0:02:55.3]} 9. Ne4 {[%clk 0:02:43.3]} 9...
Nbd7 {[%clk 0:02:54.6]} 10. b3 {[%clk 0:02:22.4]} 10... O-O {[%clk 0:02:49.2]}
11. Bb2 {[%clk 0:02:10.9]} 11... Rad8 {[%clk 0:02:49]} 12. Qe1 {[%clk
0:01:50.4]} 12... Qc7 {[%clk 0:02:32.1]} 13. Qc3 {[%clk 0:01:46]} 13... Rfe8
{[%clk 0:02:29.8]} 14. Nd4 {[%clk 0:01:43.4]} 14... Bg6 {[%clk 0:02:28]} 15.
Rfe1 {[%clk 0:01:43.1]} 15... Bf8 {[%clk 0:02:26.1]} 16. Re2 {[%clk 0:01:24]}
16... Nxe4 {[%clk 0:02:15.1]} 17. dxe4 {[%clk 0:01:16.1]} 17... Qb6 {[%clk
0:02:11.1]} 18. a3 {[%clk 0:00:56.4]} 18... Nf6 {[%clk 0:02:00.3]} 19. e5 {[%clk
0:00:19.8]} 19... Nd5 {[%clk 0:01:58.4]} 20. Qe1 {[%clk 0:00:20.4]} 20... c5
{[%clk 0:01:54.5]} 21. Nf3 {[%clk 0:00:20]} 21... c4 {[%clk 0:01:54.1]} 22. Bd4
{[%clk 0:00:13.4]} 22... Qa6 {[%clk 0:01:37.8]} 23. b4 {[%clk 0:00:12.8]} 23...
b6 {[%clk 0:01:35]} 24. h4 {[%clk 0:00:12.3]} 24... Bh5 {[%clk 0:01:34.9]} 25.
Re4 {[%clk 0:00:11.3]} 25... Qa4 {[%clk 0:01:34.8]} 26. g4 {[%clk 0:00:06.7]}
26... Bg6 {[%clk 0:01:31.3]} 27. h5 {[%clk 0:00:06.8]} 27... Bxe4 {[%clk
0:01:31.2]} 28. Qxe4 {[%clk 0:00:07.7]} 28... h6 {[%clk 0:01:21.2]} 29. g5
{[%clk 0:00:02.7]} 29... Ne7 {[%clk 0:01:21.7]} 30. gxh6 {[%clk 0:00:01.4]}
30... gxh6 {[%clk 0:01:22.6]} 0-1

[Event "*** SCC Grand Prix: Titled Tuesday Blitz"]
[Site "Chess.com"]
[Date "2020.08.25"]
[Round "1"]
[White "Siri20"]
[Black "Eliwood44"]
[Result "1-0"]
[WhiteElo "2703"]
[BlackElo "2364"]
[TimeControl "180+1"]
[EndTime "10:05:58 PDT"]
[Termination "Siri20 won by resignation"]

1. e4 {[%clk 0:03:00.9]} 1... e5 {[%clk 0:03:00.1]} 2. Nf3 {[%clk 0:03:00.4]}
2... Nc6 {[%clk 0:03:00.5]} 3. Bb5 {[%clk 0:02:59.8]} 3... a6 {[%clk 0:03:00]}
4. Ba4 {[%clk 0:02:58.9]} 4... d6 {[%clk 0:02:57.1]} 5. c3 {[%clk 0:02:56.6]}
5... Bd7 {[%clk 0:02:56.6]} 6. d4 {[%clk 0:02:53.9]} 6... g6 {[%clk 0:02:56.4]}
7. O-O {[%clk 0:02:51.4]} 7... Bg7 {[%clk 0:02:56.1]} 8. d5 {[%clk 0:02:46.3]}
8... Nce7 {[%clk 0:02:55.7]} 9. Bxd7+ {[%clk 0:02:44.8]} 9... Qxd7 {[%clk
0:02:56.6]} 10. c4 {[%clk 0:02:43]} 10... h6 {[%clk 0:02:56.5]} 11. Nc3 {[%clk
0:02:40.2]} 11... f5 {[%clk 0:02:56.3]} 12. b4 {[%clk 0:02:38.2]} 12... Nf6
{[%clk 0:02:55.3]} 13. a4 {[%clk 0:02:29.4]} 13... O-O {[%clk 0:02:51.6]} 14.
Nd2 {[%clk 0:02:25.7]} 14... fxe4 {[%clk 0:02:44.3]} 15. Ndxe4 {[%clk
0:02:24.2]} 15... Nf5 {[%clk 0:02:41.4]} 16. Nxf6+ {[%clk 0:02:20]} 16... Rxf6
{[%clk 0:02:38.3]} 17. Ne4 {[%clk 0:02:20.9]} 17... Rf7 {[%clk 0:02:37.6]} 18.
Qg4 {[%clk 0:02:08]} 18... Kh7 {[%clk 0:02:32.6]} 19. Qh3 {[%clk 0:02:06.7]}
19... Kg8 {[%clk 0:02:25.1]} 20. Rd1 {[%clk 0:02:05.7]} 20... Raf8 {[%clk
0:02:23.1]} 21. Qg4 {[%clk 0:01:57]} 21... g5 {[%clk 0:02:17.8]} 22. a5 {[%clk
0:01:49]} 22... Qe7 {[%clk 0:02:07]} 23. h3 {[%clk 0:01:38.1]} 23... Nd4 {[%clk
0:02:02.7]} 24. Ra2 {[%clk 0:01:28]} 24... c6 {[%clk 0:01:55.6]} 25. h4 {[%clk
0:01:20.8]} 25... Rf4 {[%clk 0:01:48.8]} 26. Bxf4 {[%clk 0:01:15.8]} 26... Rxf4
{[%clk 0:01:49.7]} 27. Qc8+ {[%clk 0:01:14.7]} 27... Rf8 {[%clk 0:01:40.9]} 28.
Qh3 {[%clk 0:01:12.9]} 28... cxd5 {[%clk 0:01:40.6]} 29. cxd5 {[%clk 0:01:11.1]}
29... gxh4 {[%clk 0:01:37.7]} 30. Rc1 {[%clk 0:01:06.7]} 30... Rf4 {[%clk
0:01:35.1]} 31. Qc8+ {[%clk 0:01:02.1]} 31... Kh7 {[%clk 0:01:34.8]} 32. Rc7
{[%clk 0:00:58.8]} 32... Qf8 {[%clk 0:01:28.2]} 33. Qxf8 {[%clk 0:00:55]} 33...
Rxf8 {[%clk 0:01:26.9]} 34. Rxb7 {[%clk 0:00:53.9]} 34... h3 {[%clk 0:01:24.6]}
35. gxh3 {[%clk 0:00:51.7]} 35... Rf4 {[%clk 0:01:23]} 36. Nxd6 {[%clk
0:00:48.9]} 36... Nf3+ {[%clk 0:01:22.9]} 37. Kf1 {[%clk 0:00:46.2]} 37... e4
{[%clk 0:01:20]} 38. b5 {[%clk 0:00:42.1]} 38... axb5 {[%clk 0:01:18.6]} 39. a6
{[%clk 0:00:42.1]} 39... e3 {[%clk 0:01:18.2]} 40. fxe3 {[%clk 0:00:39.8]} 40...
Rf8 {[%clk 0:01:16.6]} 41. a7 {[%clk 0:00:38.8]} 1-0

[Event "*** SCC Grand Prix: Titled Tuesday Blitz"]
[Site "Chess.com"]
[Date "2020.08.25"]
[Round "1"]
[White "LubovMarkelova"]
[Black "Gurvich_Vitaly"]
[Result "0-1"]
[WhiteElo "2254"]
[BlackElo "2585"]
[TimeControl "180+1"]
[EndTime "10:05:58 PDT"]
[Termination "Gurvich_Vitaly won by checkmate"]

1. d4 {[%clk 0:02:59.5]} 1... d5 {[%clk 0:02:59.3]} 2. Nf3 {[%clk 0:02:59]} 2...
Bf5 {[%clk 0:02:58.9]} 3. c4 {[%clk 0:02:54.3]} 3... e6 {[%clk 0:02:58.9]} 4.
Qb3 {[%clk 0:02:53.7]} 4... Nc6 {[%clk 0:02:58.4]} 5. a3 {[%clk 0:02:38.6]} 5...
Na5 {[%clk 0:02:44.5]} 6. Qa4+ {[%clk 0:02:33.6]} 6... c6 {[%clk 0:02:44.1]} 7.
cxd5 {[%clk 0:02:29.1]} 7... exd5 {[%clk 0:02:45]} 8. Nc3 {[%clk 0:02:28.5]}
8... Bd6 {[%clk 0:02:40.1]} 9. Bg5 {[%clk 0:02:25]} 9... f6 {[%clk 0:02:37.3]}
10. Bh4 {[%clk 0:02:24.5]} 10... Ne7 {[%clk 0:02:34.9]} 11. e3 {[%clk 0:02:23]}
11... b5 {[%clk 0:02:25.7]} 12. Bxb5 {[%clk 0:01:58.2]} 12... cxb5 {[%clk
0:02:24.3]} 13. Nxb5 {[%clk 0:01:58]} 13... Kf7 {[%clk 0:02:14.6]} 14. Nxd6+
{[%clk 0:01:55.9]} 14... Qxd6 {[%clk 0:02:15.5]} 15. Qxa5 {[%clk 0:01:56.2]}
15... Bd3 {[%clk 0:02:12.9]} 16. Qd2 {[%clk 0:01:52.1]} 16... Ba6 {[%clk
0:02:10.5]} 17. Bg3 {[%clk 0:01:43.7]} 17... Qb6 {[%clk 0:02:09.7]} 18. Rc1
{[%clk 0:01:00.7]} 18... Rhc8 {[%clk 0:02:03.9]} 19. b4 {[%clk 0:00:32.4]} 19...
Rxc1+ {[%clk 0:01:57.6]} 20. Qxc1 {[%clk 0:00:33.3]} 20... Rc8 {[%clk
0:01:57.8]} 21. Qb2 {[%clk 0:00:27.3]} 21... Qb5 {[%clk 0:01:53.8]} 22. Bd6
{[%clk 0:00:22.5]} 22... Qd3 {[%clk 0:01:48.8]} 23. Bc5 {[%clk 0:00:21.5]} 23...
Nf5 {[%clk 0:01:39.9]} 24. Qd2 {[%clk 0:00:10.6]} 24... Qc4 {[%clk 0:01:18.5]}
25. Ng1 {[%clk 0:00:07.3]} 25... Qf1# {[%clk 0:01:02.5]} 0-1

[Event "*** SCC Grand Prix: Titled Tuesday Blitz"]
[Site "Chess.com"]
[Date "2020.08.25"]
[Round "1"]
[White "dretch"]
[Black "michaelk123"]
[Result "1-0"]
[WhiteElo "2757"]
[BlackElo "2397"]
[TimeControl "180+1"]
[EndTime "10:06:03 PDT"]
[Termination "dretch won on time"]

1. d4 {[%clk 0:03:00.4]} 1... Nf6 {[%clk 0:02:59]} 2. c4 {[%clk 0:03:00.4]} 2...
g6 {[%clk 0:02:53.5]} 3. Nc3 {[%clk 0:03:00.5]} 3... d5 {[%clk 0:02:52.9]} 4. e3
{[%clk 0:02:59.9]} 4... Bg7 {[%clk 0:02:52.3]} 5. Qb3 {[%clk 0:02:59.1]} 5... c6
{[%clk 0:02:40.5]} 6. Nf3 {[%clk 0:02:55.1]} 6... O-O {[%clk 0:02:39.9]} 7. Be2
{[%clk 0:02:51.9]} 7... a5 {[%clk 0:02:27.6]} 8. cxd5 {[%clk 0:02:44]} 8... Nxd5
{[%clk 0:02:23.7]} 9. O-O {[%clk 0:02:40.1]} 9... Nxc3 {[%clk 0:01:57.3]} 10.
bxc3 {[%clk 0:02:38.9]} 10... b5 {[%clk 0:01:57.4]} 11. Rd1 {[%clk 0:02:10.4]}
11... Be6 {[%clk 0:01:55.2]} 12. c4 {[%clk 0:02:10.4]} 12... Na6 {[%clk
0:01:41.2]} 13. e4 {[%clk 0:02:10.1]} 13... bxc4 {[%clk 0:01:35.7]} 14. Bxc4
{[%clk 0:01:31.7]} 14... Rb8 {[%clk 0:01:34.5]} 15. Qc3 {[%clk 0:01:27.8]} 15...
Bxc4 {[%clk 0:01:34.5]} 16. Qxc4 {[%clk 0:01:28.7]} 16... Qb6 {[%clk 0:01:32.5]}
17. Bg5 {[%clk 0:01:19.2]} 17... Rb7 {[%clk 0:01:23.3]} 18. Rac1 {[%clk
0:01:17]} 18... Rc8 {[%clk 0:01:12.2]} 19. d5 {[%clk 0:01:04.4]} 19... Rbc7
{[%clk 0:01:00]} 20. Bf4 {[%clk 0:01:01.9]} 20... Rd7 {[%clk 0:00:44.4]} 21. Ng5
{[%clk 0:00:53]} 21... h6 {[%clk 0:00:03.8]} 22. Nxf7 {[%clk 0:00:52.1]} 22...
Kxf7 {[%clk 0:00:01.1]} 23. dxc6+ {[%clk 0:00:51.3]} 1-0